[Event "EYTCC Open U18 2022"]
[Site "Thessaloniki"]
[Date "2022.07.15"]
[Round "4.8"]
[White "Seemann, Jakub"]
[Black "Krastev, Alexander"]
[Result "1-0"]
[ECO "A61"]
[WhiteElo "2382"]
[BlackElo "2435"]
[Annotator "ChessBase"]
[PlyCount "89"]
[EventDate "2022.07.12"]
[EventType "team-tourn"]
[EventCountry "GRE"]
[SourceTitle "playchess.com"]
[Source "ChessBase"]
[SourceQuality "1"]
[WhiteTeam "Poland"]
[BlackTeam "Germany"]
[WhiteTeamCountry "POL"]
[BlackTeamCountry "GER"]
[TimeControl "40/5400+30:1800+30"]

1. d4 {[%emt 0:00:04]} Nf6 {[%emt 0:00:14]} 2. c4 {[%emt 0:00:06]} e6 {[%emt 0:00:04]} 3. Nf3 {[%emt 0:00:59]} c5 {[%emt 0:00:17]} 4. d5 {[%emt 0:00:05]} d6 {[%emt 0:00:03]} 5. Nc3 {[%emt 0:00:18]} exd5 {[%emt 0:00:03]} 6. cxd5 {[%emt 0:00:07]} g6 {[%emt 0:00:03]} 7. e4 {[%emt 0:00:10]} Bg7 {[%emt 0:00:04]} 8. h3 {[%emt 0:00:08]} O-O {[%emt 0:00:05]} 9. Bd3 {[%emt 0:00:06]} b5 {[%emt 0:00:02]} 10. Nxb5 {[%emt 0:00:08]} Re8 {[%emt 0:00:04]} 11. O-O {[%emt 0:00:08]} Nxe4 {[%emt 0:00:02]} 12. Bxe4 {[%emt 0:00:05]} Rxe4 {[%emt 0:01:02]} 13. Bg5 {[%emt 0:00:04]} Qd7 {[%emt 0:13:06]} 14. Nc3 {[%emt 0:02:10]} Re8 {[%emt 0:00:30]} 15. Qd2 {[%emt 0:00:42]} Bb7 {[%emt 0:03:25]} 16. Bh6 {[%emt 0:03:01]} Na6 {[%emt 0:08:23]} 17. Bxg7 {[%emt 0:01:03]} Kxg7 {[%emt 0:01:48]} 18. Qf4 {[%emt 0:04:49]} Nc7 19. Rfd1 {[%emt 0:02:51]} Rad8 {[%emt 0:32:35]} 20. b4 {[%emt 0:05:26]} Qf5 {[%emt 0:05:11]} 21. Qxf5 {[%emt 0:00:22]} gxf5 {[%emt 0:00:06]} 22. b5 {[%emt 0:02:18]} Re4 {[%emt 0:03:14]} 23. Nxe4 {[%emt 0:14:44]} fxe4 {[%emt 0:00:09]} 24. Nd2 {[%emt 0:05:44]} Bxd5 {[%emt 0:04:14]} 25. a4 {[%emt 0:00:50]} f5 {[%emt 0:03:47]} 26. Rac1 {[%emt 0:03:41]} Ne6 {[%emt 0:07:04]} 27. Nc4 {[%emt 0:12:29]} Bxc4 {[%emt 0:01:32]} 28. Rxc4 {[%emt 0:00:02]} d5 {[%emt 0:00:08]} 29. Rc2 {[%emt 0:01:12]} Kf6 {[%emt 0:03:31]} 30. a5 {[%emt 0:01:00]} Ke5 {[%emt 0:00:45]} 31. b6 {[%emt 0:02:29]} axb6 {[%emt 0:03:25]} 32. axb6 {[%emt 0:00:15]} Rb8 {[%emt 0:00:26]} 33. Rb1 {[%emt 0:04:37]} c4 {[%emt 0:01:55]} 34. Ra2 {[%emt 0:06:23]} c3 {[%emt 0:05:49]} 35. Rb3 {[%emt 0:06:07]} d4 {[%emt 0:02:37]} 36. b7 {[%emt 0:03:23]} Nc5 {[%emt 0:00:48]} 37. Ra5 {[%emt 0:02:32]} Kd6 {[%emt 0:00:04]} 38. Rb6+ {[%emt 0:01:58]} Kc7 {[%emt 0:00:04]} 39. Rb4 {[%emt 0:00:53]} Nxb7 {[%emt 0:02:47]} 40. Rd5 {[%emt 0:00:00]} Ra8 {[%emt 0:00:00]} 41. Rc4+ {[%emt 0:12:54]} Kb6 {[%emt 0:00:35]} 42. Rdxd4 {[%emt 0:00:19]} Ra1+ {[%emt 0:02:30]} 43. Kh2 {[%emt 0:00:08]} Rc1 {[%emt 0:00:05]} 44. Rc8 {[%emt 0:01:42]} Nc5 {[%emt 0:09:59]} 45. Rd6+ {[%emt 0:00:26]} 1-0

[Event "EYTCC Open U18 2022"]
[Site "Thessaloniki"]
[Date "2022.07.15"]
[Round "4.9"]
[White "Fromm, Marius"]
[Black "Stepanencu, Nicodim-Cosmin"]
[Result "1-0"]
[ECO "B92"]
[WhiteElo "2391"]
[BlackElo "2277"]
[Annotator "ChessBase"]
[PlyCount "80"]
[EventDate "2022.07.12"]
[EventType "team-tourn"]
[EventCountry "GRE"]
[SourceTitle "playchess.com"]
[Source "ChessBase"]
[SourceQuality "1"]
[WhiteTeam "Germany"]
[BlackTeam "Romania"]
[WhiteTeamCountry "GER"]
[BlackTeamCountry "ROU"]
[TimeControl "40/5400+30:1800+30"]

1. e4 {[%emt 0:00:03]} c5 {[%emt 0:00:14]} 2. Nf3 {[%emt 0:00:05]} d6 {[%emt 0:00:49]} 3. d4 {[%emt 0:00:05]} cxd4 {[%emt 0:00:04]} 4. Nxd4 {[%emt 0:00:12]} Nf6 {[%emt 0:00:06]} 5. Nc3 {[%emt 0:00:05]} a6 {[%emt 0:00:02]} 6. Be2 {[%emt 0:00:16]} e5 {[%emt 0:00:45]} 7. Nb3 {[%emt 0:00:12]} Be7 {[%emt 0:00:15]} 8. O-O {[%emt 0:00:21]} O-O {[%emt 0:00:06]} 9. Kh1 {[%emt 0:01:23]} Be6 {[%emt 0:07:39]} 10. f4 {[%emt 0:01:02]} Bd7 {[%emt 0:00:05]} 11. f5 {[%emt 0:20:49]} Bc6 {[%emt 0:00:14]} 12. Bf3 {[%emt 0:00:21]} Nbd7 {[%emt 0:29:57]} 13. g4 {[%emt 0:10:27]} a5 {[%emt 0:12:23]} 14. g5 {[%emt 0:04:36]} Ne8 {[%emt 0:00:10]} 15. h4 {[%emt 0:02:15]} f6 {[%emt 0:15:17]} 16. g6 {[%emt 0:04:04]} hxg6 {[%emt 0:00:11]} 17. Be2 {[%emt 0:16:14]} Nb6 {[%emt 0:18:32]} 18. Be3 {[%emt 0:02:51]} d5 {[%emt 0:00:01]} 19. fxg6 {[%emt 0:06:21]} f5 {[%emt 0:05:10]} 20. Bxb6 {[%emt 0:00:05]} Qxb6 {[%emt 0:00:03]} 21. exd5 {[%emt 0:01:57]} Qb4 {[%emt 0:02:50]} 22. Rf2 {[%emt 0:14:00]} Rd8 {[%emt 0:04:11]} 23. Qf1 {[%emt 0:00:03]} Rxd5 {[%emt 0:02:24]} 24. Bc4 {[%emt 0:00:20]} Nc7 {[%emt 0:00:22]} 25. Rd1 {[%emt 0:00:24]} b5 {[%emt 0:00:37]} 26. Bxd5+ {[%emt 0:00:55]} Nxd5 {[%emt 0:00:01]} 27. Nxd5 {[%emt 0:00:21]} Rd8 {[%emt 0:00:16]} 28. Qg2 {[%emt 0:00:42]} Qxh4+ {[%emt 0:01:14]} 29. Kg1 {[%emt 0:00:17]} Rxd5 {[%emt 0:00:19]} 30. Rxd5 {[%emt 0:00:11]} a4 {[%emt 0:00:39]} 31. Rd8+ {[%emt 0:01:12]} Bxd8 {[%emt 0:00:01]} 32. Qxc6 {[%emt 0:00:09]} Qg4+ {[%emt 0:00:54]} 33. Qg2 {[%emt 0:01:05]} Bb6 {[%emt 0:00:37]} 34. Qxg4 {[%emt 0:03:27]} fxg4 {[%emt 0:00:01]} 35. Kg2 {[%emt 0:00:10]} Bxf2 {[%emt 0:01:00]} 36. Kxf2 {[%emt 0:00:04]} axb3 {[%emt 0:00:04]} 37. cxb3 {[%emt 0:00:06]} Kf8 {[%emt 0:00:52]} 38. Kg3 {[%emt 0:00:04]} Ke7 {[%emt 0:00:28]} 39. Kxg4 {[%emt 0:00:04]} Kd6 {[%emt 0:00:10]} 40. Kf3 {[%emt 0:00:00]} Kd5 1-0

[Event "EYTCC Open U18 2022"]
[Site "Thessaloniki"]
[Date "2022.07.15"]
[Round "4.10"]
[White "Antonica, Dragos-Andrei"]
[Black "Deuer, Marius"]
[Result "0-1"]
[ECO "A35"]
[WhiteElo "2355"]
[BlackElo "2338"]
[Annotator "ChessBase"]
[PlyCount "62"]
[EventDate "2022.07.12"]
[EventType "team-tourn"]
[EventCountry "GRE"]
[SourceTitle "playchess.com"]
[Source "ChessBase"]
[SourceQuality "1"]
[WhiteTeam "Romania"]
[BlackTeam "Germany"]
[WhiteTeamCountry "ROU"]
[BlackTeamCountry "GER"]
[TimeControl "40/5400+30:1800+30"]

1. Nf3 {[%emt 0:00:16]} Nf6 {[%emt 0:00:06]} 2. c4 {[%emt 0:00:18]} c5 {[%emt 0:00:08]} 3. Nc3 {[%emt 0:00:14]} Nc6 {[%emt 0:00:07]} 4. e3 {[%emt 0:00:27]} a6 {[%emt 0:00:21]} 5. Be2 {[%emt 0:01:18]} g6 {[%emt 0:05:31]} 6. O-O {[%emt 0:03:55]} Bg7 {[%emt 0:01:02]} 7. Qc2 {[%emt 0:04:03]} O-O {[%emt 0:02:37]} 8. a3 {[%emt 0:02:23]} b6 {[%emt 0:04:22]} 9. b4 {[%emt 0:22:54]} cxb4 {[%emt 0:10:43]} 10. axb4 {[%emt 0:00:33]} Nxb4 {[%emt 0:03:41]} 11. Qb3 {[%emt 0:05:30]} Nc6 {[%emt 0:01:41]} 12. d4 {[%emt 0:04:03]} d6 {[%emt 0:03:11]} 13. Bd2 {[%emt 0:07:51]} e5 {[%emt 0:08:57]} 14. d5 {[%emt 0:07:44]} Nb8 {[%emt 0:05:37]} 15. Qa3 {[%emt 0:11:34]} Ne8 {[%emt 0:06:00]} 16. Rab1 {[%emt 0:03:19]} Nd7 {[%emt 0:05:03]} 17. Na4 {[%emt 0:03:19]} Rb8 {[%emt 0:07:44]} 18. Ne1 {[%emt 0:05:08]} Nc5 {[%emt 0:11:14]} 19. Nd3 {[%emt 0:03:49]} Ne4 {[%emt 0:06:04]} 20. Ba5 {[%emt 0:04:02]} Qg5 {[%emt 0:04:13]} 21. Nxb6 {[%emt 0:02:01]} Bh3 {[%emt 0:00:36]} 22. Bf3 {[%emt 0:01:26]} N8f6 {[%emt 0:00:40]} 23. Kh1 {[%emt 0:02:28]} Bf5 {[%emt 0:03:43]} 24. Rbd1 {[%emt 0:02:41]} Qh4 {[%emt 0:03:59]} 25. Qa2 {[%emt 0:00:59]} Rxb6 {[%emt 0:05:05]} 26. Bxb6 {[%emt 0:00:28]} Nc3 {[%emt 0:00:10]} 27. g3 {[%emt 0:00:44]} Qh6 {[%emt 0:00:49]} 28. Qd2 {[%emt 0:00:27]} e4 {[%emt 0:00:28]} 29. Qxc3 {[%emt 0:00:34]} exf3 {[%emt 0:00:32]} 30. Qc1 {[%emt 0:00:30]} Bxd3 {[%emt 0:00:16]} 31. Rxd3 {[%emt 0:00:13]} Qh3 {[%emt 0:00:03]} 0-1

[Event "EYTCC Open U18 2022"]
[Site "Thessaloniki"]
[Date "2022.07.15"]
[Round "4.11"]
[White "Colbow, Collin"]
[Black "Antal, Hunor-Zoltan"]
[Result "1-0"]
[ECO "B10"]
[WhiteElo "2325"]
[BlackElo "2263"]
[Annotator "ChessBase"]
[PlyCount "51"]
[EventDate "2022.07.12"]
[EventType "team-tourn"]
[EventCountry "GRE"]
[SourceTitle "playchess.com"]
[Source "ChessBase"]
[SourceQuality "1"]
[WhiteTeam "Germany"]
[BlackTeam "Romania"]
[WhiteTeamCountry "GER"]
[BlackTeamCountry "ROU"]
[TimeControl "40/5400+30:1800+30"]

1. e4 c6 2. Nf3 {[%emt 0:02:25]} d5 {[%emt 0:00:26]} 3. d3 {[%emt 0:00:06]} dxe4 {[%emt 0:00:43]} 4. dxe4 {[%emt 0:00:04]} Qxd1+ {[%emt 0:00:10]} 5. Kxd1 {[%emt 0:00:03]} Nf6 {[%emt 0:00:26]} 6. Nbd2 {[%emt 0:01:10]} Nbd7 {[%emt 0:04:48]} 7. Ne1 {[%emt 0:06:33]} Ng4 {[%emt 0:05:53]} 8. Ke2 {[%emt 0:08:26]} b6 {[%emt 0:02:27]} 9. f4 {[%emt 0:08:20]} e5 {[%emt 0:03:43]} 10. f5 {[%emt 0:21:03]} Ba6+ {[%emt 0:16:04]} 11. Kf3 {[%emt 0:02:04]} Bxf1 {[%emt 0:00:10]} 12. Nxf1 {[%emt 0:00:07]} Ngf6 {[%emt 0:00:41]} 13. g4 {[%emt 0:04:29]} h6 {[%emt 0:04:01]} 14. Be3 {[%emt 0:05:30]} Bc5 {[%emt 0:16:54]} 15. Nd3 {[%emt 0:02:11]} Bd6 {[%emt 0:08:09]} 16. Nd2 {[%emt 0:04:50]} O-O-O {[%emt 0:02:28]} 17. a4 {[%emt 0:01:16]} Kb7 {[%emt 0:11:02]} 18. a5 {[%emt 0:08:06]} Rhe8 {[%emt 0:02:13]} 19. Rhb1 {[%emt 0:03:06]} Nb8 {[%emt 0:05:13]} 20. b4 {[%emt 0:02:42]} b5 {[%emt 0:01:31]} 21. a6+ {[%emt 0:04:08]} Nxa6 {[%emt 0:01:20]} 22. Nb3 {[%emt 0:02:17]} Rc8 {[%emt 0:04:51]} 23. Ra2 {[%emt 0:00:23]} Nd7 {[%emt 0:01:17]} 24. Rba1 {[%emt 0:05:06]} Ndb8 {[%emt 0:00:02]} 25. Nbc5+ {[%emt 0:00:50]} Bxc5 {[%emt 0:00:55]} 26. Nxc5+ {[%emt 0:00:04]} 1-0

[Event "EYTCC Open U18 2022"]
[Site "Thessaloniki"]
[Date "2022.07.15"]
[Round "4.12"]
[White "Cnejev, Vladimir-Alexandru"]
[Black "Cherniaiev, Tykhon"]
[Result "0-1"]
[ECO "B40"]
[WhiteElo "2172"]
[BlackElo "2186"]
[Annotator "ChessBase"]
[PlyCount "76"]
[EventDate "2022.07.12"]
[EventType "team-tourn"]
[EventCountry "GRE"]
[SourceTitle "playchess.com"]
[Source "ChessBase"]
[SourceQuality "1"]
[WhiteTeam "Romania"]
[BlackTeam "Germany"]
[WhiteTeamCountry "ROU"]
[BlackTeamCountry "GER"]
[TimeControl "40/5400+30:1800+30"]

1. e4 {[%emt 0:00:05]} c5 {[%emt 0:00:09]} 2. Nf3 {[%emt 0:00:07]} e6 {[%emt 0:00:05]} 3. c3 {[%emt 0:00:06]} d5 {[%emt 0:00:07]} 4. e5 {[%emt 0:00:07]} d4 {[%emt 0:00:07]} 5. Bd3 {[%emt 0:00:00]} Bd7 {[%emt 0:00:00]} 6. O-O {[%emt 0:00:00]} Bc6 {[%emt 0:00:00]} 7. Re1 {[%emt 0:00:38]} g5 {[%emt 0:00:01]} 8. h3 {[%emt 0:01:33]} h5 {[%emt 0:01:02]} 9. Be4 {[%emt 0:02:02]} g4 {[%emt 0:06:15]} 10. Nh2 {[%emt 0:00:59]} Bg7 {[%emt 0:05:27]} 11. hxg4 {[%emt 0:06:57]} hxg4 {[%emt 0:02:08]} 12. Qxg4 {[%emt 0:11:06]} Bxe5 {[%emt 0:00:28]} 13. g3 {[%emt 0:03:13]} Nf6 {[%emt 0:06:19]} 14. Bxc6+ {[%emt 0:00:25]} Nxc6 {[%emt 0:00:06]} 15. Qf3 {[%emt 0:01:59]} Qc7 {[%emt 0:11:37]} 16. Na3 {[%emt 0:14:25]} O-O-O {[%emt 0:10:35]} 17. Nb5 {[%emt 0:08:52]} Qb8 {[%emt 0:10:42]} 18. cxd4 {[%emt 0:04:38]} Rxd4 {[%emt 0:11:50]} 19. Nxd4 {[%emt 0:10:52]} Nxd4 {[%emt 0:00:18]} 20. Qd3 {[%emt 0:00:10]} Qd6 {[%emt 0:01:24]} 21. a4 {[%emt 0:12:58]} Qd5 {[%emt 0:06:12]} 22. Ra3 {[%emt 0:00:43]} Ng4 {[%emt 0:02:36]} 23. Qe4 {[%emt 0:10:57]} Nxh2 {[%emt 0:02:03]} 24. Qxd5 {[%emt 0:00:35]} exd5 {[%emt 0:00:06]} 25. Kg2 {[%emt 0:00:39]} Nhf3 {[%emt 0:03:46]} 26. Rh1 {[%emt 0:01:39]} Rxh1 {[%emt 0:00:20]} 27. Kxh1 {[%emt 0:00:02]} Ne1 {[%emt 0:01:02]} 28. Re3 {[%emt 0:04:34]} Ndf3 {[%emt 0:00:31]} 29. b3 {[%emt 0:00:33]} d4 {[%emt 0:03:12]} 30. Re2 {[%emt 0:00:21]} f5 {[%emt 0:00:54]} 31. Ba3 {[%emt 0:02:00]} b6 {[%emt 0:00:28]} 32. g4 {[%emt 0:01:31]} fxg4 {[%emt 0:00:27]} 33. Re4 {[%emt 0:00:12]} Nd3 {[%emt 0:01:38]} 34. Kg2 {[%emt 0:00:24]} Bf4 {[%emt 0:00:25]} 35. Re7 {[%emt 0:00:41]} a5 {[%emt 0:00:28]} 36. Kf1 {[%emt 0:00:36]} Bxd2 {[%emt 0:01:26]} 37. Ke2 {[%emt 0:00:22]} Nf4+ {[%emt 0:00:16]} 38. Kd1 {[%emt 0:00:07]} d3 {[%emt 0:01:50]} 0-1

[Event "EYTCC Open U18 2022"]
[Site "Thessaloniki"]
[Date "2022.07.15"]
[Round "4.13"]
[White "Borhy, Marcell"]
[Black "Morgunov, Marc"]
[Result "0-1"]
[ECO "A05"]
[WhiteElo "2411"]
[BlackElo "2376"]
[Annotator "ChessBase"]
[PlyCount "98"]
[EventDate "2022.07.12"]
[EventType "team-tourn"]
[EventCountry "GRE"]
[SourceTitle "playchess.com"]
[Source "ChessBase"]
[SourceQuality "1"]
[WhiteTeam "Hungary"]
[BlackTeam "Austria"]
[WhiteTeamCountry "HUN"]
[BlackTeamCountry "AUT"]
[TimeControl "40/5400+30:1800+30"]

1. Nf3 {[%emt 0:00:06]} Nf6 {[%emt 0:00:25]} 2. g3 {[%emt 0:00:15]} g6 {[%emt 0:00:09]} 3. b3 {[%emt 0:00:15]} Bg7 {[%emt 0:01:23]} 4. Bb2 {[%emt 0:00:10]} b6 {[%emt 0:01:07]} 5. Bg2 {[%emt 0:00:12]} Bb7 {[%emt 0:00:05]} 6. O-O {[%emt 0:00:11]} O-O {[%emt 0:00:05]} 7. c4 {[%emt 0:00:33]} e6 {[%emt 0:04:04]} 8. d4 {[%emt 0:00:29]} d5 {[%emt 0:06:03]} 9. Nbd2 {[%emt 0:00:52]} Nbd7 {[%emt 0:02:44]} 10. Qc2 {[%emt 0:08:24]} c5 {[%emt 0:05:46]} 11. Rac1 {[%emt 0:00:48]} dxc4 {[%emt 0:07:42]} 12. Nxc4 {[%emt 0:10:44]} Be4 {[%emt 0:02:15]} 13. Qd2 {[%emt 0:00:57]} Qe7 {[%emt 0:02:38]} 14. dxc5 {[%emt 0:12:32]} Nxc5 {[%emt 0:03:58]} 15. Be5 {[%emt 0:00:27]} Rfd8 {[%emt 0:07:26]} 16. Qb2 {[%emt 0:00:13]} Ne8 {[%emt 0:12:59]} 17. b4 {[%emt 0:12:40]} Na4 {[%emt 0:02:49]} 18. Qa3 {[%emt 0:00:54]} b5 {[%emt 0:02:56]} 19. Bxg7 {[%emt 0:00:56]} Kxg7 {[%emt 0:06:06]} 20. Na5 {[%emt 0:09:41]} Qf6 {[%emt 0:03:07]} 21. Qe3 {[%emt 0:02:31]} Nd6 {[%emt 0:01:45]} 22. Nb3 {[%emt 0:11:32]} Bd5 {[%emt 0:06:10]} 23. Qd4 {[%emt 0:02:57]} Nc4 {[%emt 0:01:30]} 24. e4 {[%emt 0:01:15]} e5 {[%emt 0:00:44]} 25. Qxd5 {[%emt 0:10:17]} Rxd5 {[%emt 0:00:06]} 26. exd5 {[%emt 0:00:01]} Rd8 {[%emt 0:01:59]} 27. Nfd2 {[%emt 0:00:44]} Nab6 {[%emt 0:03:38]} 28. Nxc4 {[%emt 0:01:35]} Nxc4 {[%emt 0:00:46]} 29. Nc5 {[%emt 0:03:10]} Nd2 {[%emt 0:02:42]} 30. Rfd1 {[%emt 0:00:16]} Nc4 {[%emt 0:01:48]} 31. Nb7 {[%emt 0:00:53]} Rd7 {[%emt 0:02:06]} 32. Nc5 {[%emt 0:00:41]} Rd8 {[%emt 0:03:43]} 33. Nb7 {[%emt 0:00:26]} Rb8 {[%emt 0:02:41]} 34. d6 {[%emt 0:02:15]} Rxb7 {[%emt 0:00:05]} 35. Rxc4 {[%emt 0:01:37]} Rd7 {[%emt 0:03:52]} 36. Rc6 {[%emt 0:00:51]} Qe6 {[%emt 0:00:13]} 37. Be4 {[%emt 0:04:56]} Kh6 {[%emt 0:00:36]} 38. Kg2 {[%emt 0:00:35]} f5 {[%emt 0:00:28]} 39. Bc2 {[%emt 0:01:10]} Qxa2 {[%emt 0:00:36]} 40. Rc5 {[%emt 0:00:00]} e4 {[%emt 0:00:00]} 41. Rd2 {[%emt 0:04:08]} Qa3 {[%emt 0:09:37]} 42. Rcd5 {[%emt 0:08:42]} Qxb4 {[%emt 0:00:53]} 43. Bd1 {[%emt 0:01:38]} Qc3 {[%emt 0:03:29]} 44. g4 {[%emt 0:03:02]} Kg5 {[%emt 0:04:27]} 45. gxf5 {[%emt 0:04:32]} gxf5 {[%emt 0:00:09]} 46. Rc2 {[%emt 0:00:06]} Qa3 {[%emt 0:00:34]} 47. Rcc5 {[%emt 0:03:47]} Kh4 {[%emt 0:00:58]} 48. Rxf5 {[%emt 0:00:15]} Qh3+ {[%emt 0:00:06]} 49. Kh1 {[%emt 0:00:04]} Qf1# {[%emt 0:00:04]} 0-1

[Event "EYTCC Open U18 2022"]
[Site "Thessaloniki"]
[Date "2022.07.15"]
[Round "4.14"]
[White "Kristoferitsch, Daniel"]
[Black "Juhasz, Agoston"]
[Result "0-1"]
[ECO "D70"]
[WhiteElo "2312"]
[BlackElo "2344"]
[Annotator "ChessBase"]
[PlyCount "66"]
[EventDate "2022.07.12"]
[EventType "team-tourn"]
[EventCountry "GRE"]
[SourceTitle "playchess.com"]
[Source "ChessBase"]
[SourceQuality "1"]
[WhiteTeam "Austria"]
[BlackTeam "Hungary"]
[WhiteTeamCountry "AUT"]
[BlackTeamCountry "HUN"]
[TimeControl "40/5400+30:1800+30"]

1. d4 {[%emt 0:00:04]} Nf6 {[%emt 0:00:11]} 2. c4 {[%emt 0:00:07]} g6 {[%emt 0:00:11]} 3. f3 {[%emt 0:00:06]} d5 {[%emt 0:00:36]} 4. cxd5 {[%emt 0:00:09]} Nxd5 {[%emt 0:00:13]} 5. e4 {[%emt 0:00:06]} Nb6 {[%emt 0:00:28]} 6. Nc3 {[%emt 0:00:07]} Bg7 {[%emt 0:00:47]} 7. Be3 {[%emt 0:00:07]} O-O {[%emt 0:00:46]} 8. Qd2 {[%emt 0:00:09]} e5 {[%emt 0:01:30]} 9. d5 {[%emt 0:00:29]} c6 {[%emt 0:00:27]} 10. h4 {[%emt 0:01:38]} cxd5 {[%emt 0:00:43]} 11. exd5 {[%emt 0:00:15]} N8d7 {[%emt 0:01:08]} 12. h5 {[%emt 0:07:41]} Nf6 {[%emt 0:00:26]} 13. hxg6 {[%emt 0:00:44]} fxg6 {[%emt 0:00:50]} 14. O-O-O {[%emt 0:00:56]} Bd7 {[%emt 0:00:52]} 15. Kb1 {[%emt 0:05:03]} Rc8 {[%emt 0:00:37]} 16. Nh3 {[%emt 0:18:54]} e4 {[%emt 0:27:19]} 17. fxe4 {[%emt 0:06:01]} Na4 {[%emt 0:10:39]} 18. Nxa4 {[%emt 0:07:00]} Bxa4 {[%emt 0:03:44]} 19. Bd3 {[%emt 0:04:21]} Bxd1 {[%emt 0:01:27]} 20. Qxd1 {[%emt 0:03:19]} Qd7 {[%emt 0:11:30]} 21. Bd4 {[%emt 0:04:51]} Qg4 {[%emt 0:07:22]} 22. Qxg4 {[%emt 0:03:00]} Nxg4 {[%emt 0:00:04]} 23. Bxa7 {[%emt 0:00:14]} Ne5 {[%emt 0:03:38]} 24. Be2 {[%emt 0:08:20]} Nc4 {[%emt 0:01:46]} 25. Bxc4 {[%emt 0:00:12]} Rxc4 {[%emt 0:00:04]} 26. Re1 {[%emt 0:00:15]} Rfc8 {[%emt 0:11:00]} 27. b3 {[%emt 0:08:15]} Rc2 {[%emt 0:00:56]} 28. e5 {[%emt 0:02:20]} Rd2 {[%emt 0:00:52]} 29. d6 {[%emt 0:01:31]} Re8 {[%emt 0:02:56]} 30. Be3 {[%emt 0:06:34]} Rd5 {[%emt 0:00:44]} 31. Bg5 {[%emt 0:00:10]} Rexe5 {[%emt 0:05:24]} 32. Rxe5 {[%emt 0:10:17]} Bxe5 {[%emt 0:00:19]} 33. Kc2 {[%emt 0:00:10]} Rxd6 {[%emt 0:01:10]} 0-1

[Event "EYTCC Open U18 2022"]
[Site "Thessaloniki"]
[Date "2022.07.15"]
[Round "4.15"]
[White "Palczert, Matyas"]
[Black "Borrmann, Laurenz"]
[Result "1-0"]
[ECO "B15"]
[WhiteElo "2321"]
[BlackElo "2274"]
[Annotator "ChessBase"]
[PlyCount "149"]
[EventDate "2022.07.12"]
[EventType "team-tourn"]
[EventCountry "GRE"]
[SourceTitle "playchess.com"]
[Source "ChessBase"]
[SourceQuality "1"]
[WhiteTeam "Hungary"]
[BlackTeam "Austria"]
[WhiteTeamCountry "HUN"]
[BlackTeamCountry "AUT"]
[TimeControl "40/5400+30:1800+30"]

1. e4 {[%emt 0:00:03]} c6 {[%emt 0:00:10]} 2. d4 {[%emt 0:00:09]} d5 {[%emt 0:00:09]} 3. Nc3 {[%emt 0:00:14]} dxe4 {[%emt 0:00:40]} 4. Nxe4 {[%emt 0:00:10]} Nf6 {[%emt 0:00:57]} 5. Nxf6+ {[%emt 0:00:12]} exf6 {[%emt 0:00:08]} 6. c3 {[%emt 0:00:51]} Bd6 {[%emt 0:00:09]} 7. Bd3 {[%emt 0:00:24]} O-O {[%emt 0:00:10]} 8. Ne2 {[%emt 0:00:26]} Re8 {[%emt 0:01:46]} 9. O-O {[%emt 0:02:01]} Nd7 {[%emt 0:13:40]} 10. Ng3 {[%emt 0:00:56]} Nf8 {[%emt 0:01:58]} 11. Qc2 {[%emt 0:04:43]} Qc7 {[%emt 0:06:57]} 12. Bd2 {[%emt 0:07:52]} Be6 {[%emt 0:06:42]} 13. c4 {[%emt 0:03:47]} Bf4 {[%emt 0:07:53]} 14. Bc3 {[%emt 0:02:42]} h5 {[%emt 0:08:40]} 15. Rfe1 {[%emt 0:04:01]} Rad8 {[%emt 0:05:43]} 16. Nf1 {[%emt 0:07:12]} Qc8 {[%emt 0:03:04]} 17. Rad1 {[%emt 0:04:13]} h4 {[%emt 0:02:01]} 18. Ne3 {[%emt 0:04:52]} Ng6 {[%emt 0:02:58]} 19. d5 {[%emt 0:16:36]} cxd5 {[%emt 0:02:36]} 20. Bxg6 {[%emt 0:00:57]} fxg6 {[%emt 0:03:37]} 21. Bxf6 {[%emt 0:06:45]} Rd7 {[%emt 0:03:04]} 22. Qxg6 {[%emt 0:04:32]} Rf7 {[%emt 0:06:27]} 23. Bg5 {[%emt 0:09:05]} Bxg5 {[%emt 0:08:03]} 24. Qxg5 {[%emt 0:00:16]} dxc4 {[%emt 0:00:40]} 25. Qxh4 {[%emt 0:03:21]} c3 {[%emt 0:01:32]} 26. bxc3 {[%emt 0:01:56]} Qxc3 {[%emt 0:01:05]} 27. Nd5 {[%emt 0:03:35]} Qc2 {[%emt 0:01:20]} 28. Nf4 {[%emt 0:03:34]} Rd7 {[%emt 0:00:42]} 29. Rc1 {[%emt 0:03:19]} Bf7 {[%emt 0:00:30]} 30. h3 {[%emt 0:03:11]} Qxa2 {[%emt 0:01:54]} 31. Qg4 {[%emt 0:01:01]} Rde7 {[%emt 0:02:01]} 32. Rxe7 {[%emt 0:00:48]} Rxe7 {[%emt 0:00:04]} 33. Rc8+ {[%emt 0:00:48]} Be8 {[%emt 0:02:43]} 34. Qh4 {[%emt 0:02:26]} Qa1+ {[%emt 0:02:04]} 35. Kh2 {[%emt 0:00:07]} Qe5 {[%emt 0:01:45]} 36. g3 {[%emt 0:00:25]} g5 {[%emt 0:01:43]} 37. Qg4 {[%emt 0:00:50]} Kh7 {[%emt 0:00:40]} 38. Nd3 {[%emt 0:00:26]} Qd5 {[%emt 0:01:21]} 39. Rxe8 {[%emt 0:00:39]} Rxe8 {[%emt 0:00:10]} 40. Qh5+ {[%emt 0:00:00]} Kg7 {[%emt 0:00:00]} 41. Qxe8 {[%emt 0:02:15]} Qxd3 {[%emt 0:00:50]} 42. Qe7+ {[%emt 0:00:21]} Kg6 {[%emt 0:02:59]} 43. Qxb7 {[%emt 0:01:14]} Qa3 {[%emt 0:02:18]} 44. Qe4+ {[%emt 0:01:12]} Kf6 {[%emt 0:02:52]} 45. h4 {[%emt 0:02:02]} gxh4 {[%emt 0:00:36]} 46. Qxh4+ {[%emt 0:00:15]} Kg6 {[%emt 0:01:13]} 47. Qe4+ {[%emt 0:01:13]} Kg7 {[%emt 0:01:08]} 48. Qe5+ {[%emt 0:00:35]} Kf7 {[%emt 0:00:34]} 49. Qd5+ {[%emt 0:02:19]} Kg7 {[%emt 0:00:36]} 50. f4 {[%emt 0:03:14]} a5 {[%emt 0:03:14]} 51. Qe5+ {[%emt 0:01:54]} Kg8 {[%emt 0:03:02]} 52. Qe8+ {[%emt 0:11:32]} Kg7 {[%emt 0:00:14]} 53. Qe5+ {[%emt 0:03:35]} Kf8 {[%emt 0:01:53]} 54. Qh8+ {[%emt 0:01:20]} Kf7 {[%emt 0:00:11]} 55. Qh5+ {[%emt 0:03:39]} Kg7 {[%emt 0:00:23]} 56. f5 {[%emt 0:01:31]} a4 {[%emt 0:00:48]} 57. Qg6+ {[%emt 0:00:20]} Kf8 {[%emt 0:00:12]} 58. Qf6+ {[%emt 0:00:20]} Kg8 {[%emt 0:00:38]} 59. Qe6+ {[%emt 0:00:17]} Kf8 {[%emt 0:00:19]} 60. Qf6+ {[%emt 0:01:25]} Kg8 {[%emt 0:00:33]} 61. Qd8+ {[%emt 0:00:23]} Kf7 {[%emt 0:00:21]} 62. Qd7+ {[%emt 0:00:28]} Kf8 {[%emt 0:00:11]} 63. Kh3 {[%emt 0:00:40]} Qc5 {[%emt 0:01:36]} 64. Qd8+ {[%emt 0:00:29]} Kf7 {[%emt 0:00:19]} 65. Qd7+ {[%emt 0:00:31]} Kf8 {[%emt 0:00:18]} 66. Qd8+ {[%emt 0:00:30]} Kf7 {[%emt 0:00:08]} 67. Qg5 {[%emt 0:00:29]} a3 {[%emt 0:02:14]} 68. Qg6+ {[%emt 0:00:28]} Kf8 {[%emt 0:00:11]} 69. Qf6+ {[%emt 0:00:28]} Kg8 {[%emt 0:00:14]} 70. Qe6+ {[%emt 0:00:07]} Kf8 {[%emt 0:01:04]} 71. Qh6+ {[%emt 0:00:22]} Kg8 {[%emt 0:01:55]} 72. Qe6+ {[%emt 0:00:36]} Kf8 {[%emt 0:00:19]} 73. f6 {[%emt 0:00:46]} Qb4 {[%emt 0:06:49]} 74. Qd7 {[%emt 0:00:42]} Kg8 {[%emt 0:01:22]} 75. Qg7# {[%emt 0:00:12]} 1-0